[Event "XVI Gran Hotel Bali 2017"]
[Site "Benidorm"]
[Date "2017.12.01"]
[Round "1"]
[White "Gajic, Mladen"]
[Black "Mancebo Ibanez, Fernando"]
[Result "1-0"]
[ECO "D10"]
[WhiteElo "2300"]
[BlackElo "2086"]
[Annotator "NA"]
[PlyCount "83"]
[EventDate "2017.??.??"]
[EventType "swiss"]
[EventCountry "ESP"]
[SourceTitle "playchess.com"]
[Source "ChessBase"]
[SourceQuality "1"]
[TimeControl "5400+30"]

1. d4 {[%emt 0:00:00]} d5 {[%emt 0:00:06]} 2. c4 {[%emt 0:00:47]} c6 {[%emt 0:00:55]} 3. cxd5 {[%emt 0:00:18]} cxd5 {[%emt 0:00:11]} 4. Nc3 {[%emt 0:00:05]} e5 {[%emt 0:11:04]} 5. dxe5 {[%emt 0:07:50]} d4 {[%emt 0:00:13]} 6. Ne4 {[%emt 0:00:39]} Qa5+ {[%emt 0:00:09]} 7. Bd2 {[%emt 0:01:38]} Qxe5 {[%emt 0:00:09]} 8. Ng3 {[%emt 0:00:21]} Bc5 {[%emt 0:00:16]} 9. Nf3 {[%emt 0:15:47]} Qe7 {[%emt 0:00:08]} 10. b4 {[%emt 0:10:05]} Bb6 {[%emt 0:06:34]} 11. Qc2 {[%emt 0:08:15]} Nc6 {[%emt 0:25:33]} 12. b5 {[%emt 0:00:27]} Ne5 {[%emt 0:00:12]} 13. Nxe5 {[%emt 0:04:15]} Qxe5 {[%emt 0:03:01]} 14. Qe4 {[%emt 0:00:05]} Qe6 {[%emt 0:06:13]} 15. Nf5 {[%emt 0:13:06]} Qxe4 {[%emt 0:03:12]} 16. Nd6+ {[%emt 0:00:30]} Kd8 {[%emt 0:08:25]} 17. Nxe4 {[%emt 0:00:06]} Be6 {[%emt 0:00:05]} 18. e3 {[%emt 0:05:23]} dxe3 {[%emt 0:13:48]} 19. fxe3 {[%emt 0:00:05]} Ne7 {[%emt 0:00:57]} 20. Ng5 {[%emt 0:05:24]} Nf5 {[%emt 0:11:57]} 21. Nxe6+ {[%emt 0:00:05]} fxe6 {[%emt 0:00:05]} 22. Ke2 {[%emt 0:00:12]} Rc8 {[%emt 0:01:00]} 23. a4 {[%emt 0:00:36]} Ke7 {[%emt 0:01:27]} 24. g4 {[%emt 0:00:46]} Nh4 {[%emt 0:01:44]} 25. a5 {[%emt 0:05:06]} Bc7 {[%emt 0:01:30]} 26. Bc3 {[%emt 0:01:26]} Rhg8 {[%emt 0:01:13]} 27. Rd1 {[%emt 0:01:19]} Bd6 {[%emt 0:00:30]} 28. Be1 {[%emt 0:02:13]} g5 {[%emt 0:00:36]} 29. Bg3 {[%emt 0:03:52]} Bb4 {[%emt 0:00:19]} 30. b6 {[%emt 0:01:06]} Rc2+ {[%emt 0:00:30]} 31. Kd3 {[%emt 0:00:01]} Rc3+ {[%emt 0:00:13]} 32. Ke4 {[%emt 0:00:06]} axb6 {[%emt 0:00:31]} 33. axb6 {[%emt 0:00:09]} Bc5 {[%emt 0:00:51]} 34. Bd3 {[%emt 0:00:35]} Ng2 {[%emt 0:00:20]} 35. Rc1 {[%emt 0:00:22]} Rxc1 {[%emt 0:00:53]} 36. Rxc1 {[%emt 0:00:01]} Bxb6 {[%emt 0:00:06]} 37. Rb1 {[%emt 0:00:07]} Bc5 {[%emt 0:02:45]} 38. Rxb7+ {[%emt 0:00:28]} Kf8 {[%emt 0:00:05]} 39. Be5 {[%emt 0:02:45]} Nxe3 {[%emt 0:01:34]} 40. Rc7 {[%emt 0:02:42]} Bb6 {[%emt 0:00:22]} 41. Rc6 {[%emt 0:00:09]} Nd5 {[%emt 0:00:02]} 42. Rxe6 {[%emt 0:00:14]} 1-0

[Event "XVI Gran Hotel Bali 2017"]
[Site "Benidorm"]
[Date "2017.12.01"]
[Round "1"]
[White "Ibanez Aullana, Ramon"]
[Black "Tocco, Paolo"]
[Result "1/2-1/2"]
[ECO "A40"]
[WhiteElo "2295"]
[BlackElo "2086"]
[Annotator "NA"]
[PlyCount "86"]
[EventDate "2017.??.??"]
[EventType "swiss"]
[EventCountry "ESP"]
[SourceTitle "playchess.com"]
[Source "ChessBase"]
[SourceQuality "1"]
[TimeControl "5400+30"]

1. d4 {[%emt 0:10:24]} b6 {[%emt 0:00:12]} 2. e4 {[%emt 0:02:34]} Bb7 {[%emt 0:00:06]} 3. Bd3 {[%emt 0:00:23]} Nf6 {[%emt 0:00:18]} 4. Qe2 {[%emt 0:02:04]} e6 {[%emt 0:00:41]} 5. Nf3 {[%emt 0:00:57]} d5 {[%emt 0:00:34]} 6. e5 {[%emt 0:00:33]} Ne4 {[%emt 0:00:12]} 7. O-O {[%emt 0:02:28]} c5 {[%emt 0:07:34]} 8. c3 {[%emt 0:00:43]} a5 {[%emt 0:00:20]} 9. Ne1 {[%emt 0:03:45]} h6 {[%emt 0:15:54]} 10. f3 {[%emt 0:14:35]} Ng5 {[%emt 0:00:09]} 11. h4 {[%emt 0:00:41]} Nh7 {[%emt 0:00:17]} 12. g3 {[%emt 0:00:34]} cxd4 {[%emt 0:00:09]} 13. cxd4 {[%emt 0:00:08]} Nc6 {[%emt 0:00:05]} 14. Be3 {[%emt 0:00:16]} Nb4 {[%emt 0:00:21]} 15. Bb5+ {[%emt 0:00:17]} Nc6 {[%emt 0:01:21]} 16. Nc3 {[%emt 0:02:39]} Be7 {[%emt 0:00:29]} 17. Rc1 {[%emt 0:01:53]} O-O {[%emt 0:00:24]} 18. Ng2 {[%emt 0:09:36]} Na7 {[%emt 0:15:16]} 19. Bd3 {[%emt 0:01:58]} Re8 {[%emt 0:00:19]} 20. Qd2 {[%emt 0:06:22]} f5 {[%emt 0:06:59]} 21. Nf4 {[%emt 0:02:16]} Nf8 {[%emt 0:04:11]} 22. h5 {[%emt 0:06:49]} Bg5 {[%emt 0:02:58]} 23. g4 {[%emt 0:01:26]} fxg4 {[%emt 0:03:25]} 24. fxg4 {[%emt 0:00:35]} Nc6 {[%emt 0:00:29]} 25. Bb1 {[%emt 0:03:59]} Ba6 {[%emt 0:04:37]} 26. Rf2 {[%emt 0:03:18]} Rc8 {[%emt 0:00:08]} 27. Nh3 {[%emt 0:01:52]} Bxe3 {[%emt 0:08:15]} 28. Qxe3 {[%emt 0:00:03]} Qh4 {[%emt 0:00:21]} 29. Nf4 {[%emt 0:05:20]} Qxg4+ {[%emt 0:04:28]} 30. Kh1 {[%emt 0:01:02]} Qh4+ {[%emt 0:11:03]} 31. Rh2 {[%emt 0:00:11]} Qe7 {[%emt 0:00:18]} 32. Rg1 {[%emt 0:05:29]} Rc7 {[%emt 0:04:39]} 33. Ncxd5 {[%emt 0:01:28]} exd5 {[%emt 0:01:04]} 34. Nxd5 {[%emt 0:00:03]} Qf7 {[%emt 0:01:16]} 35. Nxc7 {[%emt 0:02:11]} Qxc7 {[%emt 0:00:13]} 36. Rhg2 {[%emt 0:01:00]} Re7 {[%emt 0:02:26]} 37. Qb3+ {[%emt 0:00:54]} Kh8 {[%emt 0:00:58]} 38. Rf2 {[%emt 0:00:24]} Qd8 {[%emt 0:02:20]} 39. Qxb6 {[%emt 0:02:45]} Qe8 {[%emt 0:02:12]} 40. Qxa6 {[%emt 0:03:54]} Qxh5+ {[%emt 0:00:58]} 41. Rh2 {[%emt 0:00:31]} Qf3+ {[%emt 0:00:17]} 42. Rgg2 {[%emt 0:00:34]} Qd1+ {[%emt 0:00:10]} 43. Rg1 {[%emt 0:00:06]} Qf3+ 1/2-1/2

[Event "XVI Gran Hotel Bali 2017"]
[Site "Benidorm"]
[Date "2017.12.01"]
[Round "1"]
[White "Garcia Blanco, Omar"]
[Black "Bustos Bernardo, Samuel"]
[Result "1-0"]
[ECO "B22"]
[WhiteElo "2274"]
[BlackElo "2083"]
[Annotator "NA"]
[PlyCount "97"]
[EventDate "2017.??.??"]
[EventType "swiss"]
[EventCountry "ESP"]
[SourceTitle "playchess.com"]
[Source "ChessBase"]
[SourceQuality "1"]
[TimeControl "5400+30"]

1. e4 {[%emt 0:00:00]} c5 {[%emt 0:00:12]} 2. c3 {[%emt 0:00:00]} d5 {[%emt 0:00:11]} 3. exd5 {[%emt 0:00:02]} Qxd5 {[%emt 0:00:08]} 4. d4 {[%emt 0:00:13]} Nc6 {[%emt 0:00:17]} 5. Nf3 {[%emt 0:00:19]} Bg4 {[%emt 0:00:09]} 6. dxc5 {[%emt 0:00:54]} Qxd1+ {[%emt 0:01:52]} 7. Kxd1 {[%emt 0:00:09]} e5 {[%emt 0:02:31]} 8. b4 {[%emt 0:00:21]} a5 {[%emt 0:03:46]} 9. b5 {[%emt 0:00:35]} Nd8 {[%emt 0:02:15]} 10. c6 {[%emt 0:00:15]} bxc6 {[%emt 0:01:31]} 11. h3 {[%emt 0:00:13]} Bxf3+ {[%emt 0:13:09]} 12. gxf3 {[%emt 0:00:21]} Bc5 {[%emt 0:07:41]} 13. Kc2 {[%emt 0:03:33]} Bxf2 {[%emt 0:12:51]} 14. Ba3 {[%emt 0:04:00]} Ne7 {[%emt 0:01:41]} 15. Nd2 {[%emt 0:01:14]} Bh4 {[%emt 0:03:14]} 16. Nc4 {[%emt 0:00:26]} O-O {[%emt 0:03:55]} 17. Nxe5 {[%emt 0:00:37]} Re8 {[%emt 0:11:08]} 18. Bxe7 {[%emt 0:05:42]} Rxe7 {[%emt 0:01:37]} 19. Nxc6 {[%emt 0:00:58]} Nxc6 {[%emt 0:00:08]} 20. bxc6 {[%emt 0:00:09]} g6 {[%emt 0:10:51]} 21. Bc4 {[%emt 0:06:41]} Re3 {[%emt 0:05:50]} 22. Rad1 {[%emt 0:02:12]} Bf6 {[%emt 0:04:27]} 23. Rd3 {[%emt 0:00:05]} Re2+ {[%emt 0:00:33]} 24. Rd2 {[%emt 0:42:13]} Re3 {[%emt 0:00:01]} 25. Rd3 {[%emt 0:00:19]} Re2+ {[%emt 0:00:02]} 26. Kd1 {[%emt 0:00:13]} Re7 {[%emt 0:02:56]} 27. Re1 {[%emt 0:03:06]} Rxe1+ {[%emt 0:04:16]} 28. Kxe1 {[%emt 0:00:05]} Ra7 {[%emt 0:02:00]} 29. Kd2 {[%emt 0:00:37]} Kf8 {[%emt 0:00:47]} 30. Kc2 {[%emt 0:00:57]} Ke7 {[%emt 0:02:20]} 31. Kb3 {[%emt 0:00:15]} Be5 {[%emt 0:03:07]} 32. Ka4 {[%emt 0:00:05]} Bh2 {[%emt 0:00:21]} 33. Bb3 {[%emt 0:02:45]} Bg1 {[%emt 0:00:13]} 34. Kb5 {[%emt 0:00:13]} Rc7 {[%emt 0:00:58]} 35. Bd5 {[%emt 0:00:44]} f6 {[%emt 0:00:29]} 36. Kxa5 {[%emt 0:00:27]} Kd6 {[%emt 0:00:15]} 37. Kb5 {[%emt 0:00:17]} Ke5 {[%emt 0:00:40]} 38. Bb3 {[%emt 0:01:38]} Ba7 {[%emt 0:00:35]} 39. Rd7 {[%emt 0:00:25]} Bb8 {[%emt 0:00:03]} 40. Kb6 {[%emt 0:00:12]} Rc8 {[%emt 0:00:43]} 41. c7 {[%emt 0:00:19]} Bxc7+ {[%emt 0:00:01]} 42. Rxc7 {[%emt 0:00:11]} Rb8+ {[%emt 0:00:14]} 43. Rb7 {[%emt 0:00:29]} Rc8 {[%emt 0:00:15]} 44. c4 {[%emt 0:00:10]} Kd4 {[%emt 0:00:16]} 45. Rd7+ {[%emt 0:00:09]} Ke5 {[%emt 0:00:35]} 46. c5 {[%emt 0:00:07]} Rb8+ {[%emt 0:00:02]} 47. Rb7 {[%emt 0:00:06]} Rd8 {[%emt 0:00:44]} 48. c6 {[%emt 0:00:08]} Rd6 {[%emt 0:00:08]} 49. Rd7 {[%emt 0:00:07] Kd5} 1-0

[Event "XVI Gran Hotel Bali 2017"]
[Site "Benidorm"]
[Date "2017.12.01"]
[Round "1"]
[White "Amdouni, Zoubaier"]
[Black "Vinal Gutierrez, Pedro"]
[Result "1/2-1/2"]
[ECO "C07"]
[WhiteElo "2272"]
[BlackElo "2074"]
[Annotator "NA"]
[PlyCount "138"]
[EventDate "2017.??.??"]
[EventType "swiss"]
[EventCountry "ESP"]
[SourceTitle "playchess.com"]
[Source "ChessBase"]
[SourceQuality "1"]
[TimeControl "5400+30"]

1. e4 {[%emt 0:00:00]} e6 {[%emt 0:00:01]} 2. d4 {[%emt 0:00:02]} d5 {[%emt 0:00:04]} 3. Nd2 {[%emt 0:00:03]} c5 {[%emt 0:00:12]} 4. exd5 {[%emt 0:00:06]} Qxd5 {[%emt 0:00:10]} 5. Ngf3 {[%emt 0:00:04]} cxd4 {[%emt 0:00:12]} 6. Bc4 {[%emt 0:00:04]} Qd7 {[%emt 0:00:36]} 7. O-O {[%emt 0:00:27]} Nc6 {[%emt 0:00:38]} 8. Nb3 {[%emt 0:00:24]} Nf6 {[%emt 0:00:29]} 9. Qe2 {[%emt 0:14:50]} Be7 {[%emt 0:08:54]} 10. Rd1 {[%emt 0:00:42]} O-O {[%emt 0:02:02]} 11. Nbxd4 {[%emt 0:02:10]} Nxd4 {[%emt 0:02:30]} 12. Rxd4 {[%emt 0:01:28]} Qc7 {[%emt 0:03:17]} 13. Bg5 {[%emt 0:17:07]} Rd8 {[%emt 0:06:11]} 14. Rad1 {[%emt 0:00:59]} Rxd4 {[%emt 0:00:22]} 15. Rxd4 {[%emt 0:01:04]} Ne8 {[%emt 0:03:36]} 16. Bxe7 {[%emt 0:15:47]} Qxe7 {[%emt 0:00:16]} 17. Qd3 {[%emt 0:00:20]} a6 {[%emt 0:15:08]} 18. Rd8 {[%emt 0:07:15]} b5 {[%emt 0:00:40]} 19. Ng5 {[%emt 0:12:46]} g6 {[%emt 0:02:28]} 20. Bb3 {[%emt 0:00:05]} Bb7 {[%emt 0:01:04]} 21. Nxf7 {[%emt 0:02:40]} Rxd8 {[%emt 0:06:22]} 22. Nxd8 {[%emt 0:00:22]} Bc8 {[%emt 0:01:46]} 23. h3 {[%emt 0:01:23]} Ng7 {[%emt 0:01:12]} 24. Qd4 {[%emt 0:07:09]} Bd7 {[%emt 0:01:06]} 25. Qb6 {[%emt 0:00:32]} Bc8 {[%emt 0:01:07]} 26. c3 {[%emt 0:00:28]} Qd7 {[%emt 0:00:43]} 27. a4 {[%emt 0:02:14]} bxa4 {[%emt 0:01:07]} 28. Bc4 {[%emt 0:01:37]} Kf8 {[%emt 0:02:53]} 29. Qc5+ {[%emt 0:02:15]} Ke8 {[%emt 0:01:28]} 30. Nc6 {[%emt 0:00:07]} Qc7 {[%emt 0:03:09]} 31. Be2 {[%emt 0:00:22]} Nf5 {[%emt 0:01:24]} 32. Qc4 {[%emt 0:01:50]} Nd6 {[%emt 0:02:28]} 33. Qxa4 {[%emt 0:00:22]} Bd7 {[%emt 0:00:49]} 34. Bf3 {[%emt 0:00:04]} Qb6 {[%emt 0:04:50]} 35. Qa5 {[%emt 0:04:44]} Nc4 {[%emt 0:02:45]} 36. Qxb6 {[%emt 0:00:19]} Nxb6 {[%emt 0:00:11]} 37. Na5 {[%emt 0:00:28]} Na4 {[%emt 0:00:17]} 38. Be2 {[%emt 0:01:37]} Nxb2 {[%emt 0:00:26]} 39. Bxa6 {[%emt 0:00:04]} Na4 {[%emt 0:00:30]} 40. c4 {[%emt 0:00:26]} Ke7 {[%emt 0:00:27]} 41. Nb3 {[%emt 0:01:26]} Kd6 {[%emt 0:00:45]} 42. Kf1 {[%emt 0:01:21]} Nc5 {[%emt 0:00:36]} 43. Nxc5 {[%emt 0:00:03]} Kxc5 {[%emt 0:00:06]} 44. Ke2 {[%emt 0:00:02]} Kd4 {[%emt 0:03:11]} 45. Bb5 {[%emt 0:00:17]} Bc8 {[%emt 0:00:15]} 46. f4 {[%emt 0:00:16]} Bb7 {[%emt 0:00:42]} 47. g4 {[%emt 0:01:55]} Bg2 {[%emt 0:02:26]} 48. h4 {[%emt 0:00:06]} Be4 {[%emt 0:00:28]} 49. g5 {[%emt 0:03:21]} Bd3+ {[%emt 0:01:31]} 50. Kf3 {[%emt 0:00:04]} Be4+ {[%emt 0:00:13]} 51. Kg3 {[%emt 0:00:09]} Bd3 {[%emt 0:01:02]} 52. Be8 {[%emt 0:01:28]} Bxc4 {[%emt 0:01:33]} 53. Bf7 {[%emt 0:00:04]} Bd5 {[%emt 0:04:42]} 54. Bg8 {[%emt 0:00:55]} e5 {[%emt 0:01:21]} 55. Bxh7 {[%emt 0:00:04]} exf4+ {[%emt 0:00:16]} 56. Kxf4 {[%emt 0:00:03]} Bf7 {[%emt 0:00:15]} 57. Kg4 {[%emt 0:00:53]} Ke5 {[%emt 0:00:15]} 58. Kg3 {[%emt 0:01:13]} Kf5 {[%emt 0:00:27]} 59. Kf3 {[%emt 0:00:24]} Bd5+ {[%emt 0:00:15]} 60. Ke3 {[%emt 0:00:01]} Kg4 {[%emt 0:00:29]} 61. Bxg6 {[%emt 0:00:17]} Bc6 {[%emt 0:00:59]} 62. Bf7 {[%emt 0:00:12]} Bd7 {[%emt 0:02:54]} 63. g6 {[%emt 0:00:18]} Bf5 {[%emt 0:00:17]} 64. h5 {[%emt 0:01:02]} Kg5 {[%emt 0:00:13]} 65. Kd4 {[%emt 0:00:37]} Kf6 {[%emt 0:00:21]} 66. Ke3 {[%emt 0:00:44]} Bg4 {[%emt 0:01:02]} 67. h6 {[%emt 0:00:03]} Bf5 {[%emt 0:00:19]} 68. h7 {[%emt 0:00:40]} Kg7 {[%emt 0:00:09]} 69. Kf4 {[%emt 0:00:03]} Bxg6 {[%emt 0:00:07]} 1/2-1/2

[Event "XVI Gran Hotel Bali 2017"]
[Site "Benidorm"]
[Date "2017.12.01"]
[Round "1"]
[White "Lornye, Pylyp"]
[Black "Baktache, Mohamed Ali"]
[Result "1-0"]
[ECO "A05"]
[WhiteElo "2264"]
[BlackElo "2068"]
[Annotator "NA"]
[PlyCount "76"]
[EventDate "2017.??.??"]
[EventType "swiss"]
[EventCountry "ESP"]
[SourceTitle "playchess.com"]
[Source "ChessBase"]
[SourceQuality "1"]
[TimeControl "5400+30"]

1. Nf3 {[%emt 0:00:00]} Nf6 {[%emt 0:00:02]} 2. g3 {[%emt 0:00:00]} d5 {[%emt 0:00:16]} 3. Bg2 {[%emt 0:00:00]} e6 {[%emt 0:00:36]} 4. O-O {[%emt 0:00:25]} Be7 {[%emt 0:00:09]} 5. c4 {[%emt 0:01:57]} O-O {[%emt 0:01:39]} 6. cxd5 {[%emt 0:00:08]} exd5 {[%emt 0:00:17]} 7. d3 {[%emt 0:00:17]} c6 {[%emt 0:01:30]} 8. Qc2 {[%emt 0:03:12]} h6 {[%emt 0:02:31]} 9. e4 {[%emt 0:02:04]} dxe4 {[%emt 0:08:19]} 10. dxe4 {[%emt 0:00:07]} Na6 {[%emt 0:01:49]} 11. Rd1 {[%emt 0:06:33]} Qb6 {[%emt 0:05:12]} 12. Nc3 {[%emt 0:00:32]} Nb4 {[%emt 0:03:28]} 13. Qe2 {[%emt 0:02:57]} Be6 {[%emt 0:04:56]} 14. a3 {[%emt 0:10:15]} Na6 {[%emt 0:00:55]} 15. Be3 {[%emt 0:03:07]} Qc7 {[%emt 0:00:35]} 16. Nd4 {[%emt 0:02:07]} Bg4 {[%emt 0:05:19]} 17. f3 {[%emt 0:01:00]} Bc8 {[%emt 0:01:23]} 18. Rac1 {[%emt 0:08:17]} Bc5 {[%emt 0:09:13]} 19. b4 {[%emt 0:06:44]} Bxd4 {[%emt 0:06:08]} 20. Bxd4 {[%emt 0:00:11]} Qe7 {[%emt 0:02:05]} 21. e5 {[%emt 0:01:39]} Nd5 {[%emt 0:01:57]} 22. Nxd5 {[%emt 0:00:14]} cxd5 {[%emt 0:00:02]} 23. b5 {[%emt 0:00:07]} Nc7 {[%emt 0:02:11]} 24. Bc5 {[%emt 0:00:06]} Qd8 {[%emt 0:00:55]} 25. Bxf8 {[%emt 0:00:33]} Kxf8 {[%emt 0:00:15]} 26. f4 {[%emt 0:00:34]} Be6 {[%emt 0:01:02]} 27. Qf2 {[%emt 0:01:03]} Bg4 {[%emt 0:13:25]} 28. Rd2 {[%emt 0:00:56]} Kg8 {[%emt 0:03:45]} 29. h3 {[%emt 0:00:44]} Bd7 {[%emt 0:00:02]} 30. a4 {[%emt 0:02:44]} b6 {[%emt 0:06:21]} 31. Bxd5 {[%emt 0:02:26]} Nxd5 {[%emt 0:00:49]} 32. Rxd5 {[%emt 0:00:05]} Qe8 {[%emt 0:02:42]} 33. f5 {[%emt 0:00:05]} g6 {[%emt 0:04:12]} 34. fxg6 {[%emt 0:01:05]} Be6 {[%emt 0:02:19]} 35. Rd6 {[%emt 0:00:50]} Rc8 {[%emt 0:04:32]} 36. gxf7+ {[%emt 0:01:18]} Bxf7 {[%emt 0:02:49]} 37. Rxc8 {[%emt 0:00:13]} Qxc8 {[%emt 0:00:17]} 38. Kh2 {[%emt 0:00:11]} Kg7 1-0

[Event "XVI Gran Hotel Bali 2017"]
[Site "Benidorm"]
[Date "2017.12.01"]
[Round "1"]
[White "Ladron De Guevara Galar, Fco J"]
[Black "Fernandez Barrera, Victor"]
[Result "0-1"]
[ECO "D82"]
[WhiteElo "2087"]
[BlackElo "2300"]
[Annotator "NA"]
[PlyCount "58"]
[EventDate "2017.??.??"]
[EventType "swiss"]
[EventCountry "ESP"]
[SourceTitle "playchess.com"]
[Source "ChessBase"]
[SourceQuality "1"]
[TimeControl "5400+30"]

1. d4 {[%emt 0:00:00]} Nf6 {[%emt 0:00:02]} 2. c4 {[%emt 0:00:00]} g6 {[%emt 0:00:18]} 3. Nc3 {[%emt 0:00:04]} d5 {[%emt 0:00:06]} 4. Bf4 {[%emt 0:00:40]} Bg7 {[%emt 0:00:27]} 5. e3 {[%emt 0:00:22]} c6 {[%emt 0:01:19]} 6. Nf3 {[%emt 0:01:56]} O-O {[%emt 0:00:10]} 7. Rc1 {[%emt 0:00:42]} dxc4 {[%emt 0:01:34]} 8. Bxc4 {[%emt 0:00:37]} Nbd7 {[%emt 0:00:12]} 9. h3 {[%emt 0:01:55]} Nb6 {[%emt 0:00:33]} 10. Bb3 {[%emt 0:01:49]} Nfd5 {[%emt 0:04:50]} 11. O-O {[%emt 0:04:26]} Nxf4 {[%emt 0:03:21]} 12. exf4 {[%emt 0:00:06]} Qd6 {[%emt 0:07:15]} 13. Qd2 {[%emt 0:12:43]} Qb4 {[%emt 0:17:36]} 14. Qe2 {[%emt 0:14:24]} a5 {[%emt 0:03:13]} 15. Ne5 {[%emt 0:22:40]} Bxe5 {[%emt 0:11:28]} 16. Qxe5 {[%emt 0:07:19]} a4 {[%emt 0:00:20]} 17. Bc2 {[%emt 0:02:38]} Nc4 {[%emt 0:01:18]} 18. Qg5 {[%emt 0:00:59]} Ra5 {[%emt 0:01:20]} 19. Qg3 {[%emt 0:01:02]} Nxb2 {[%emt 0:02:55]} 20. d5 {[%emt 0:03:54]} Rc5 {[%emt 0:07:39]} 21. Bb1 {[%emt 0:05:45]} cxd5 {[%emt 0:05:11]} 22. a3 {[%emt 0:04:38]} Qb6 {[%emt 0:01:26]} 23. Ba2 {[%emt 0:02:16]} Qa5 {[%emt 0:06:36]} 24. Qe3 {[%emt 0:02:37]} Be6 {[%emt 0:03:30]} 25. Qd4 {[%emt 0:00:34]} Nc4 {[%emt 0:02:31]} 26. Nxa4 {[%emt 0:01:32]} Rc6 {[%emt 0:00:01]} 27. Bb3 {[%emt 0:02:19]} Rfc8 {[%emt 0:00:37]} 28. Rce1 {[%emt 0:02:32]} Nd2 {[%emt 0:01:47]} 29. f5 {[%emt 0:00:27]} Nxb3 {[%emt 0:00:22]} 0-1

[Event "XVI Gran Hotel Bali 2017"]
[Site "Benidorm"]
[Date "2017.12.01"]
[Round "1"]
[White "Do Santos Julio, Joao Manuel"]
[Black "Olhovik, Andrei"]
[Result "0-1"]
[ECO "B40"]
[WhiteElo "2086"]
[BlackElo "2299"]
[Annotator "NA"]
[PlyCount "104"]
[EventDate "2017.??.??"]
[EventType "swiss"]
[EventCountry "ESP"]
[SourceTitle "playchess.com"]
[Source "ChessBase"]
[SourceQuality "1"]
[TimeControl "5400+30"]

1. e4 {[%emt 0:00:00]} c5 {[%emt 0:00:16]} 2. Nf3 {[%emt 0:00:00]} e6 {[%emt 0:00:18]} 3. d4 {[%emt 0:00:01]} cxd4 {[%emt 0:00:05]} 4. Nxd4 {[%emt 0:00:29]} Bc5 {[%emt 0:00:05]} 5. Nb3 {[%emt 0:00:46]} Bb6 {[%emt 0:00:06]} 6. Qg4 {[%emt 0:01:50]} Nf6 {[%emt 0:00:44]} 7. Qh4 {[%emt 0:00:40]} Nc6 {[%emt 0:01:45]} 8. Nc3 {[%emt 0:00:45]} Ne5 {[%emt 0:07:19]} 9. Be2 {[%emt 0:04:21]} Ng6 {[%emt 0:03:46]} 10. Qg3 {[%emt 0:00:40]} O-O {[%emt 0:04:09]} 11. Bg5 {[%emt 0:02:46]} h6 {[%emt 0:01:32]} 12. Be3 {[%emt 0:00:30]} d6 {[%emt 0:13:24]} 13. O-O {[%emt 0:08:02]} e5 {[%emt 0:01:38]} 14. Rad1 {[%emt 0:01:49]} a6 {[%emt 0:02:19]} 15. Nc5 {[%emt 0:07:33]} Qc7 {[%emt 0:02:07]} 16. Nd3 {[%emt 0:00:47]} Ba5 {[%emt 0:02:50]} 17. Nd5 {[%emt 0:18:28]} Nxd5 {[%emt 0:00:11]} 18. exd5 {[%emt 0:00:12]} Qxc2 {[%emt 0:02:15]} 19. Bg4 {[%emt 0:01:37]} Bxg4 {[%emt 0:05:03]} 20. Qxg4 {[%emt 0:00:03]} Qc8 {[%emt 0:00:10]} 21. Qa4 {[%emt 0:00:46]} Qd8 {[%emt 0:00:45]} 22. Kh1 {[%emt 0:03:09]} Bb6 {[%emt 0:02:08]} 23. Bc1 {[%emt 0:00:42]} f5 {[%emt 0:05:45]} 24. f3 {[%emt 0:03:05]} Rc8 {[%emt 0:04:46]} 25. Bd2 {[%emt 0:01:59]} Ne7 {[%emt 0:06:38]} 26. Bb4 {[%emt 0:02:19]} f4 {[%emt 0:00:30]} 27. Rc1 {[%emt 0:01:57]} Rxc1 {[%emt 0:01:40]} 28. Rxc1 {[%emt 0:00:55]} Nf5 {[%emt 0:03:04]} 29. Nxe5 {[%emt 0:02:10]} Be3 {[%emt 0:07:02]} 30. Rd1 {[%emt 0:03:14]} dxe5 {[%emt 0:00:51]} 31. Bxf8 {[%emt 0:00:18]} Kxf8 {[%emt 0:00:25]} 32. Qb4+ {[%emt 0:00:58]} Nd6 {[%emt 0:00:45]} 33. Qc3 {[%emt 0:00:51]} Bd4 {[%emt 0:00:23]} 34. Qc2 {[%emt 0:00:42]} Kf7 {[%emt 0:01:30]} 35. b3 {[%emt 0:00:45]} Be3 {[%emt 0:03:52]} 36. Rd3 {[%emt 0:01:12]} Qa5 {[%emt 0:00:55]} 37. Rd1 {[%emt 0:01:34]} Kf6 {[%emt 0:01:15]} 38. Qh7 {[%emt 0:00:45]} Qd8 {[%emt 0:00:40]} 39. g4 {[%emt 0:01:42]} Kf7 {[%emt 0:01:06]} 40. Qc2 {[%emt 0:00:42]} Qd7 {[%emt 0:02:23]} 41. Rd3 {[%emt 0:02:21]} e4 {[%emt 0:04:02]} 42. Rc3 {[%emt 0:00:28]} Qb5 {[%emt 0:01:37]} 43. Rc7+ {[%emt 0:02:17]} Kg8 {[%emt 0:01:54]} 44. Rc8+ {[%emt 0:04:12]} Kh7 {[%emt 0:00:17]} 45. Rc4 {[%emt 0:01:07]} Qxd5 {[%emt 0:00:14]} 46. fxe4 {[%emt 0:00:15]} Qe5 {[%emt 0:00:05]} 47. Ra4 {[%emt 0:02:43]} f3 {[%emt 0:01:46]} 48. Qd1 {[%emt 0:02:35]} Nxe4 {[%emt 0:00:31]} 49. Qb1 {[%emt 0:00:30]} Bd4 {[%emt 0:00:53]} 50. Qd3 {[%emt 0:00:37]} Qf4 {[%emt 0:00:37]} 51. Rc4 {[%emt 0:02:23]} f2 {[%emt 0:00:42]} 52. Qf1 {[%emt 0:02:26]} Qf3+ {[%emt 0:00:11]} 0-1

[Event "XVI Gran Hotel Bali 2017"]
[Site "Benidorm"]
[Date "2017.12.01"]
[Round "1"]
[White "Gonzalez Aguirre, Luis"]
[Black "Ayats Llobera, Gerard"]
[Result "0-1"]
[ECO "A30"]
[WhiteElo "2084"]
[BlackElo "2285"]
[Annotator "NA"]
[PlyCount "56"]
[EventDate "2017.??.??"]
[EventType "swiss"]
[EventCountry "ESP"]
[SourceTitle "playchess.com"]
[Source "ChessBase"]
[SourceQuality "1"]
[TimeControl "5400+30"]

1. Nf3 {[%emt 0:00:00]} c5 {[%emt 0:00:14]} 2. c4 {[%emt 0:00:11]} Nf6 {[%emt 0:01:06]} 3. Nc3 {[%emt 0:00:15]} b6 {[%emt 0:00:16]} 4. g3 {[%emt 0:00:23]} Bb7 {[%emt 0:00:05]} 5. Bg2 {[%emt 0:00:07]} e6 {[%emt 0:00:31]} 6. O-O {[%emt 0:00:29]} Be7 {[%emt 0:00:07]} 7. b3 {[%emt 0:04:54]} O-O {[%emt 0:01:38]} 8. Bb2 {[%emt 0:00:07]} a6 {[%emt 0:04:54]} 9. e3 {[%emt 0:02:21]} d6 {[%emt 0:06:43]} 10. Qe2 {[%emt 0:02:10]} Nbd7 {[%emt 0:01:14]} 11. Rfd1 {[%emt 0:02:38]} Qc7 {[%emt 0:00:47]} 12. Rac1 {[%emt 0:00:53]} Rac8 {[%emt 0:19:38]} 13. d4 {[%emt 0:05:11]} Qb8 {[%emt 0:01:24]} 14. d5 {[%emt 0:13:56]} exd5 {[%emt 0:21:24]} 15. Nxd5 {[%emt 0:03:50]} Nxd5 {[%emt 0:00:25]} 16. cxd5 {[%emt 0:00:04]} Bf6 {[%emt 0:00:39]} 17. Bh3 {[%emt 0:05:09]} Bxb2 {[%emt 0:01:27]} 18. Qxb2 {[%emt 0:00:15]} Rc7 {[%emt 0:07:09]} 19. Nh4 {[%emt 0:07:47]} g6 {[%emt 0:02:55]} 20. Bg2 {[%emt 0:16:12]} b5 {[%emt 0:04:03]} 21. Nf3 {[%emt 0:00:48]} Re8 {[%emt 0:01:35]} 22. Nd2 {[%emt 0:01:10]} Qd8 {[%emt 0:02:10]} 23. Ne4 {[%emt 0:03:52]} Qe7 {[%emt 0:00:11]} 24. a4 {[%emt 0:02:51]} Ne5 {[%emt 0:03:18]} 25. axb5 {[%emt 0:05:38]} axb5 {[%emt 0:00:12]} 26. Nxc5 {[%emt 0:05:24]} Rxc5 {[%emt 0:01:39]} 27. Rxc5 {[%emt 0:00:07]} dxc5 {[%emt 0:00:02]} 28. d6 {[%emt 0:00:08]} Qd7 {[%emt 0:00:26]} 0-1